{"text_format":"3","workbook":"xlsx","n_sheets":1,"sheets":["Сады БУ 2023"],"not_rendered":{"defined_names":5},"read":"whole","date_system":"1900"}

{"sheet":"Сады БУ 2023","index":0,"n_rows":119,"n_cols":5,"rows_kept":119}
[null,"Бюджет на 2023 год по МБДОУ"]
["КОСГУ","Наименование показателя","дкр","Доп Эк",103]
[]
[null,"РАСХОДЫ"]
[210,"Начисления на выплаты по оплате труда, всего:",null,null,{"$f":"E6+E12+E10","v":{"v":13577457.090000002,"d":"13,577,457.09"}}]
[211,"Заработная плата, всего:",null,null,{"$f":"SUM(E7:E9)","v":{"v":10428154.450000001,"d":"10,428,154.45"}}]
[null,"зарплата пед.персонала (НФЗ субвенция)",null,"П211004",{"v":9289227.93,"d":"9,289,227.93"}]
[null,"с родплаты",null,"П211004",{"v":768708.39,"d":"768,708.39"}]
[null,"премия пед.работникам (ДопФк 13597)",null,"П211004",{"v":370218.13,"d":"370,218.13"}]
[212,"Прочие выплаты, всего:"]
[{"$nulls":3},{"v":212002,"d":"212,002"}]
[213,"Начисления на выплаты по оплате труда, всего:",null,null,{"$f":"SUM(E13:E15)","v":{"v":3149302.64,"d":"3,149,302.64"}}]
[null,"начисление на зар.пл. пед.перс. (НФЗ субвенция)",null,"П213004",{"v":2805346.84,"d":"2,805,346.84"}]
[null,"с родплаты",null,"П213004",{"v":232149.93,"d":"232,149.93"}]
[null,"премия пед.работникам (ДопФк 13597)",null,"П213004",{"$f":"ROUND(E9*0.302,2)-0.01","v":{"v":111805.87000000001,"d":"111,805.87"}}]
[220,"Оплата работ, услуг:",null,null,{"$f":"E17+E22+E25+E34+E38+E66+E84","v":{"v":5386200.74,"d":"5,386,200.74"}}]
[221,"Услуги связи, всего:",null,null,{"$f":"SUM(E18:E21)","v":{"v":34586.29,"d":"34,586.29"}}]
[null,"Услуги городской телефонной связи (местные соединения)",304,"П221001",{"v":13800,"d":"13,800.00"}]
[null,"плата за предоставление доступа к сети Интернет",null,"П221002"]
[null,"Услуги сети \"Интернет\"",null,"П221012",{"$f":"12900+7886.29","v":{"v":20786.29,"d":"20,786.29"}}]
[null,"Прочие",null,"П221099"]
[222,"Транспортные услуги, всего:"]
[null,"Все виды расходов по транспортному обслуживанию  (найм)"]
[null,"Прочие",null,"П222099"]
[223,"Коммунальные услуги, всего:",null,null,{"$f":"SUM(E26:E33)","v":{"v":1356284.28,"d":"1,356,284.28"}}]
[null,"Оплата потребления электрической энергии",304,"П223001",{"v":571608,"d":"571,608.00"}]
[null,"Оплата потребления электрической энергии (разница +ассигнования)",304,"П223001"]
[null,"Оплата отопления и технологических нужд",304,"П223002",{"v":635513,"d":"635,513.00"}]
[null,"Оплата потребления газа",304,"П223003"]
[null,"Оплата водоснабжения помещений",304,"П223004",{"v":88333,"d":"88,333.00"}]
[null,"Оплата договоров на вывоз твердых коммунальных отходов с региональным оператором",304,"П223017",{"v":60830.28,"d":"60,830.28"}]
[null,"разница асс-лимиты коммуналка",308,"П223099"]
[null,"Прочие расходы по ком расходам, не включенные в др коды ЖБО",304,"П223099"]
[224,"Арендная плата за пользование имуществом, всего:"]
[null,"Аренда помещения",null,"П224001"]
[null,"Аренда транспорта",null,"П224002"]
[null,"Прочие",null,"П224099"]
[225,"Работы, услуги по содержанию имущества, всего:",null,null,{"$f":"E39+E44+E45+E46+E50+E51+E57+E58+E59+E60+E47","v":{"v":212388.16999999998,"d":"212,388.17"}}]
[{"$nulls":3},"П225002",{"$f":"SUM(E40:E43)","v":{"v":12819.130000000001,"d":"12,819.13"}}]
[null,"Сброс снега с крыши",304]
[null,"Дезинфекция, дезинсекция и дератизация",304,null,{"v":10209.67,"d":"10,209.67"}]
[null,"Обработка участков от комаров и клещей (аккарицидная обработка)",304,null,{"v":2609.46,"d":"2,609.46"}]
[null,"Содержание контейнерных площадок",304]
[null,"Проведение работ по ремонту и восстановлению эффективности функционирования коммунальных инженерных систем и коммуникаций,  (опрессовка системы отопления)",304,"П225003",{"v":34210.2,"d":"34,210.20"}]
[null,"З/пл внешт.сотр.(сброс снега с крыши)",304,"П225005"]
[null,"Текущий ремонт зданий (плановые кровельные и общестроительные работы, плановый ремонт коммунальных инженерных систем и коммуникаций, в том числе газового и теплового хозяйства, сетей водоснабжения, водоотведения и электроснабжения)",304,"Н225007",{"v":44622,"d":"44,622.00"}]
[{"$nulls":3},"П225036",{"$f":"SUM(E48:E49)","v":{"v":0,"d":"0.00"}}]
[null,"Противопожарные мероприятия (замеры сопротивления изоляции)",304]
[null,"Противопожарные мероприятия (огнезащитная обработка чердачных перекрытий)",304]
[null,"Техническое обслуживание и ремонт аппаратного обеспечения (оргтехника, медицинское оборудование, компьют.техника и т.д.), включающее контроль тех.состояния",null,"П225010",{"v":20000,"d":"20,000.00"}]
[{"$nulls":3},"П225015",{"$f":"SUM(E52:E56)","v":{"v":84962.6,"d":"84,962.60"}}]
[null,"Расходы на техническое обслуживание и ремонт оборудования (торговое, кухонное, офисное, лифты и т.п.), мебели, бытовой техники, инвентаря (торгового, кухонного, офисного и т.п.)",304,null,{"v":17793.08,"d":"17,793.08"}]
[null,"Расходы на техническое обслуживание и ремонт малых грузовых лифтов",304]
[null,"Расходы на техническое обслуживание вентиляционной системы",304]
[null,"Расходы на техническое обслуживание теплообменников",304,null,{"v":43584,"d":"43,584.00"}]
[null,"Расходы на техническое обслуживание  узлов пог.регулир",304,null,{"v":23585.52,"d":"23,585.52"}]
[null,"Содержание в чистоте движимого имущества",{"v":304.303,"d":"304"},"П225016"]
[null,"Техническое обслуживание приборов учета теплоучета и узла ГВС",304,"П225035",{"v":15774.24,"d":"15,774.24"}]
[null,"Благоустройство территории (общестроительные работы вне здания, обрезка деревьев)",304,"П225040"]
[{"$nulls":3},"П225098",{"$f":"SUM(E61:E65)","v":{"v":0,"d":"0.00"}}]
[null,"Экспертиза огнезащитной обработки"]
[null,"Потребность на замену счётчиков и трансформаторов"]
[null,"Прочие работы и услуги (техосвидетельствование лифтов)",304]
[null,"Обслуживание Блочно-Модульной Котельной"]
[null,"Эксплуатационные расходы и прочие"]
[226,"Прочие работы, услуги, всего:",null,null,{"$f":"E67+E68+E72+E78+E79+E80+E71","v":{"v":3782942,"d":"3,782,942.00"}}]
[null,"Подписка ",302,"П226001"]
[{"$nulls":3},"П226003",{"$f":"SUM(E69:E70)","v":{"v":3749814,"d":"3,749,814.00"}}]
[null,"Организация питания бюджет",303]
[null,"Организация питания родплата",303,null,{"v":3749814,"d":"3,749,814.00"}]
[null,"Предоставление во временное пользование мягкого инвентаря",null,"П226037"]
[{"$nulls":3},"П226052",{"$f":"SUM(E73:E77)","v":{"v":17000,"d":"17,000.00"}}]
[null,"Обучение санит.гигиен.обуч.руковод.1500/1чел",304,null,{"v":1500,"d":"1,500.00"}]
[null,"Прочие обучения (охрана труда -1500руб.-1чел.)",304]
[null,"Обучение контрактным управляющим 5500/1чел",304,null,{"v":5500,"d":"5,500.00"}]
[null,"Прочие обучения (электробезопасность 4000/чел",304,null,{"v":4000,"d":"4,000.00"}]
[null,"Обучение ГО и ЧС 3000/1чел",304,null,{"v":6000,"d":"6,000.00"}]
[null,"Проведение инвентаризации, паспортизации основных средств",304,"П226027"]
[null,"Услуги охраны ЧОП с 2022г отдельно лимиты",304,"П226050"]
[{"$nulls":3},"П226098",{"$f":"SUM(E81:E83)","v":{"v":16128,"d":"16,128.00"}}]
[null,"Прочие услуги (аттестация рабочих мест СОУТ)",304]
[null,"Прочие услуги (потребность на обслуживание автоматизированного учёта электроэнергии)",304,null,{"$f":"5376*3","v":{"v":16128,"d":"16,128.00"}}]
[null,"Прчие работы и услуги (испытание наруж.металич.лестниц)",304]
[227,"Страхование",null,null,{"$f":"SUM(E85)","v":{"v":0,"d":"0.00"}}]
[null,"Услуги страхования (за исключ ОСАГО,Каско)",304,"П227001"]
[290,"Прочие расходы, всего:",290,null,{"$f":"E87+E88+E89+E92","v":{"v":1930247,"d":"1,930,247.00"}}]
[null,"Земельный налог",304,"П291001",{"$f":"104408+28583","v":{"v":132991,"d":"132,991.00"}}]
[null,"Налог на имущество",304,"П291014",{"v":1797256,"d":"1,797,256.00"}]
[{"$nulls":3},"П291005",{"$f":"SUM(E90:E91)","v":{"v":0,"d":"0.00"}}]
[null,"Госпошлина на переоформеление лицензии (мед.деятельность)"]
[null,"Госпошлина на оформеление аккредитации"]
[null,"Налог по упрощенной системе налогообложения для автономных учреждений",303,"П291025"]
[300,"Поступление нефинансовых активов, всего:",null,null,{"$f":"E94+E98","v":{"v":182344.46,"d":"182,344.46"}}]
[310,"Увеличение стоимости основных средств, всего:",null,null,{"$f":"SUM(E95:E97)","v":{"v":52907.53,"d":"52,907.53"}}]
[null,"Приобретение автоматизированных рабочих мест, транспортно-коммуникационного оборудования, серверного, периферийного и т.п.оборудования",null,"Н310004",{"v":17907.53,"d":"17,907.53"}]
[null,"Первоочередныерасходы по увеличению стоимости основных средств",null,"П310098"]
[null,"Прочие расходы по увеличению стоимости основных средств",null,"Н310099",{"v":35000,"d":"35,000.00"}]
[340,"Увеличение стоимости материальных запасов, всего:",null,null,{"$f":"+E105+E106+E107+E110+E115+E99+E100+E101+E104","v":{"v":129436.93,"d":"129,436.93"}}]
[null,"Закупка медикаментов, перевязочных средств (расходных материалов) город",303,"П341006",{"v":8207.28,"d":"8,207.28"}]
[null,"Прочие расходы по увеличению стоимости строит.материалов город",304,"Н344099",{"v":18511.83,"d":"18,511.83"}]
[{"$nulls":3},"П345002",{"$f":"SUM(E102:E103)","v":{"v":17206.45,"d":"17,206.45"}}]
[null,"Закупка мягкого инвентаря, одежды,  обмундирования родплата",303]
[null,"мягкий инвентарь город",303,null,{"v":17206.45,"d":"17,206.45"}]
[null,"Закупка запчастей к транспорту и оборудованию",null,"П346003"]
[null,"Закупка материалов, используемых в процессе обучения (субвенция)",302,"П346004"]
[null,"Приобретение канцелярских и хозяственных товаров город","303, 304","П346017",{"v":37023.66,"d":"37,023.66"}]
[{"$nulls":3},"Н346099",{"$f":"SUM(E108:E109)","v":{"v":13160.9,"d":"13,160.90"}}]
[null,"Прочие расходы по увеличение стоимости мат.запасов родплата",303,null,{"v":13160.9,"d":"13,160.90"}]
[null,"Прочие расходы по увеличение стоимости мат.запасов  город",304]
[{"$nulls":3},"П346098",{"$f":"SUM(E111:E114)","v":{"v":35326.81,"d":"35,326.81"}}]
[null,"Прочие расходы по увеличение стоимости мат.запасов город",304,null,{"v":18115.81,"d":"18,115.81"}]
[null,"Прочие расходы по увеличение стоимости мат.запасов родплата",303]
[null,"Прочие расходы по увеличение стоимости мат.запасов (замена песка)",304,null,{"v":15000,"d":"15,000.00"}]
[null,"Прочие расходы по увеличение стоимости мат.запасов (замена  песч.сол.смесь)",304,null,{"v":2211,"d":"2,211.00"}]
[null,"Призы, подарки при проведении мероприятий",304,"Н349098"]
[null,"ИТОГО РАСХОДОВ без охраны:",null,null,{"$f":"E5+E16+E86+E93","v":{"v":21076249.290000003,"d":"21,076,249.29"}}]
[null,"Прочие расходы по увеличение стоимости мат.запасов (ассигнования)"]
[304,"Услуги охраны ЧОП с 2022г отдельно лимиты сверх бюджета",304,"П226050",{"v":569400,"d":"569,400.00"}]
[null,"ИТОГО РАСХОДОВ с охраной",null,null,{"$f":"E118+E116","v":{"v":21645649.290000003,"d":"21,645,649.29"}}]